bitfinex-derivatives/quotes_SOLF0:USTF0_20250911
["timestamp","ask_amount","ask_price","bid_price","bid_amount"]
[1757626711669,6.60773965,226.19,226.15,0.03370531]
[1757626711863,7.32,226.23,226.15,0.03370531]
[1757626712062,7.32,226.21,226.15,0.03370531]
[1757626712263,7.32,226.19,226.15,7.51370531]
[1757626712563,7.32,226.23,226.15,7.51370531]
[1757626712760,7.32,226.21,226.15,7.51370531]
[1757626712968,6.60755211,226.2,226.15,7.51370531]
[1757626713264,6.60755211,226.19,226.15,7.51370531]
[1757626713468,7.32,226.23,226.15,7.51370531]
[1757626713668,7.32,226.21,226.15,7.51370531]
[1757626713867,6.60783063,226.2,226.15,7.51370531]
[1757626714170,7.32,226.18,226.15,7.51370531]
[1757626714359,7.32,226.23,226.15,7.51370531]
[1757626714562,7.32,226.21,226.15,7.51370531]
[1757626714766,6.60833703,226.2,226.16,7.48]
[1757626715068,7.32,226.19,226.16,7.48]
[1757626715367,7.32,226.24,226.16,7.48]
[1757626715568,7.32,226.22,226.16,7.48]
[1757626715759,10.18707511,226.21,226.16,7.48]
[1757626715963,7.32,226.19,226.16,7.48]
[1757626716160,7.32,226.24,226.16,7.48]
[1757626716360,7.32,226.22,226.16,7.48]
[1757626716563,7.32,226.2,226.16,7.48]
[1757626716770,7.32,226.24,226.16,7.48]
[1757626716971,7.32,226.22,226.16,7.48]
[1757626717269,7.32,226.2,226.16,7.48]
[1757626717471,7.32,226.24,226.16,7.48]
[1757626717667,10.18753327,226.23,226.16,7.48]
[1757626717869,7.32,226.21,226.16,7.48]
[1757626718070,7.32,226.19,226.16,7.48]
[1757626718667,7.32,226.24,226.16,7.48]
[1757626718869,7.32,226.22,226.16,7.48]
[1757626719067,7.32,226.2,226.16,7.48]
[1757626719272,7.32,226.24,226.16,7.48]
[1757626719473,7.32,226.22,226.16,7.48]
[1757626719670,7.32,226.2,226.16,7.48]
[1757626719971,7.32,226.24,226.16,7.48]
[1757626720172,7.32,226.22,226.16,7.48]
[1757626720370,7.32,226.2,226.16,7.48]
[1757626720572,7.32,226.24,226.16,7.48]
[1757626720764,7.32,226.22,226.16,7.48]
[1757626720963,6.60958328,226.21,226.16,7.48]
[1757626721166,7.32,226.19,226.16,7.48]
[1757626721876,7.32,226.24,226.16,7.48]
[1757626722074,7.32,226.22,226.16,7.48]
[1757626722274,13.93024188,226.21,226.15,7.51370531]
[1757626722473,7.32,226.19,226.16,7.48]
[1757626724877,7.32,226.19,226.15,0.03370531]
[1757626725778,7.32,226.19,226.16,7.48]
[1757626726175,7.32,226.19,226.15,0.03370531]
[1757626726373,7.32,226.19,226.16,7.48]
[1757626726676,3.44779035,226.27,226.15,0.03370531]
[1757626726880,17.50531223,226.24,226.16,7.48]
[1757626727176,10.18531223,226.23,226.16,7.48]
[1757626727377,6.60449962,226.22,226.16,7.48]
[1757626727577,7.32,226.24,226.18,7.51138433]
[1757626727773,7.32,226.22,226.19,7.48]
[1757626729683,7.32,226.27,226.19,7.48]
[1757626729886,7.32,226.25,226.19,7.48]
[1757626730182,3.03675669,226.24,226.19,7.48]
[1757626730385,7.32,226.25,226.19,7.48]
[1757626730579,6.60124951,226.24,226.18,0.03138433]
[1757626730875,7.32,226.25,226.19,7.48]
[1757626735688,7.32,226.31,226.19,7.48]
[1757626735884,61.81140903,226.32,226.19,7.48]
[1757626735885,10.16981212,226.3,226.19,7.48]
[1757626736189,6.5944763,226.29,226.19,7.48]
[1757626736388,7.32,226.31,226.23,7.48]
[1757626736585,10.16665499,226.3,226.23,7.48]
[1757626736779,6.59241669,226.29,226.23,7.48]
[1757626736987,7.32,226.31,226.23,7.48]
[1757626737294,6.59240329,226.3,226.23,7.48]
[1757626737586,6.59240329,226.29,226.23,7.48]
[1757626737786,7.32,226.31,226.23,7.48]
[1757626738090,13.94084968,226.3,226.23,7.48]
[1757626738388,7.35,226.3,226.23,7.48]
[1757626738786,7.35,226.3,226.24,0.03028323]
[1757626740092,7.35,226.35,226.25,6.92]
[1757626740287,7.35,226.33,226.25,6.92]
[1757626740488,7.35,226.31,226.25,6.92]
[1757626740684,7.35,226.38,226.25,6.92]
[1757626740885,7.35,226.36,226.25,6.92]
[1757626741087,7.35,226.34,226.25,6.92]
[1757626741391,7.35,226.34,226.29,6.92]
[1757626741693,7.35,226.39,226.29,6.92]
[1757626741996,7.35,226.37,226.29,6.92]
[1757626742193,7.35,226.35,226.29,6.92]
[1757626744388,10.79779035,226.42,226.29,6.92]
[1757626744700,7.35,226.4,226.29,6.92]
[1757626744994,7.35,226.4,226.33,0.03141862]
[1757626745290,7.35,226.4,226.31,6.92]
[1757626745695,7.35,226.4,226.34,0.02846935]
[1757626764304,2.20308735,226.37,226.34,0.02846935]
[1757626764503,7.35,226.36,226.34,0.02846935]
[1757626764703,2.20308735,226.37,226.34,0.02846935]
[1757626765006,7.35,226.36,226.34,0.02846935]
[1757626765907,2.20308735,226.37,226.34,0.02846935]
[1757626766106,7.35,226.36,226.34,0.02846935]
[1757626767005,2.20308735,226.37,226.34,0.02846935]
[1757626767605,7.23,226.36,226.34,0.02846935]
[1757626767904,2.20308735,226.37,226.34,0.02846935]
[1757626768909,7.23,226.36,226.34,0.02846935]
[1757626769612,2.20308735,226.37,226.34,0.02846935]
[1757626770008,7.23,226.36,226.34,0.02846935]
[1757626770809,2.20308735,226.37,226.34,0.02846935]
[1757626771008,7.23,226.36,226.34,0.02846935]
[1757626771410,2.20308735,226.37,226.34,0.02846935]
[1757626771610,7.23,226.36,226.34,0.02846935]
[1757626771909,2.20308735,226.37,226.34,0.02846935]
[1757626772107,7.23,226.36,226.34,0.02846935]
[1757626772913,2.20308735,226.37,226.34,0.02846935]
[1757626773315,7.23,226.36,226.34,0.02846935]
[1757626775317,7.23,226.36,226.22,7.24]
[1757626775617,9.43308735,226.31,226.23,7.51]
[1757626784932,7.23,226.31,226.23,7.51]
[1757626800238,7.23,226.31,226.19,7.53]
[1757626800436,6.9,226.25,226.15,7.53]
[1757626800637,6.9,226.25,226.16,7.53]
[1757626801040,3.63970634,226.24,226.16,7.53]
[1757626801342,6.9,226.23,226.16,7.53]
[1757626806439,6.9,226.23,226.11,7.53]
[1757626806645,6.9,226.21,226.11,7.53]
[1757626806842,6.9,226.19,226.11,7.53]
[1757626815453,6.9,226.19,226.03,7.53]
[1757626815749,6.9,226.19,226.07,7.53]
[1757626820451,3.62331465,226.18,226.07,7.53]
[1757626820646,6.9,226.19,226.07,7.53]
[1757626820852,6.9,226.17,226.07,7.53]
[1757626825156,6.9,226.15,226.07,7.53]
[1757626826756,6.9,226.15,226.04,7.53]
[1757626826962,6.9,226.13,226.04,7.53]
[1757626836069,3.61653419,226.12,226.04,7.53]
[1757626836272,7.08,226.11,226.04,7.53]
[1757626839972,7.08,226.2,226.04,7.53]
[1757626840269,7.08,226.18,226.04,7.53]
[1757626840570,7.08,226.16,226.04,7.53]
[1757626841469,3.62164446,226.15,226.04,7.53]
[1757626841675,7.08,226.18,226.04,7.53]
[1757626841874,3.62164426,226.17,226.04,7.53]
[1757626842172,3.62164426,226.16,226.04,7.53]
[1757626842372,3.62164426,226.15,226.04,7.53]
[1757626842575,7.08,226.18,226.04,7.53]
[1757626842773,3.62394105,226.17,226.04,7.53]
[1757626842971,3.62394105,226.16,226.04,7.53]
[1757626843166,3.62394105,226.15,226.04,7.53]
[1757626843372,3.62394105,226.14,226.04,7.53]
[1757626843574,7.08,226.18,226.04,7.53]
[1757626843874,7.08,226.16,226.04,7.53]
[1757626844071,3.62658984,226.15,226.06,7.01]
[1757626844272,3.62658984,226.14,226.06,7.01]
[1757626844471,7.08,226.16,226.06,7.01]
[1757626844675,3.62970565,226.15,226.06,7.01]
[1757626844875,3.62970565,226.14,226.06,7.01]
[1757626845075,7.08,226.16,226.06,7.01]
[1757626845277,3.62970565,226.15,226.06,7.01]
[1757626845473,3.62970565,226.14,226.06,7.01]
[1757626845675,7.08,226.16,226.06,7.01]
[1757626845876,3.62674084,226.15,226.06,7.01]
[1757626846075,3.62674084,226.14,226.06,7.01]
[1757626846276,7.08,226.16,226.06,7.01]
[1757626846474,3.62791537,226.15,226.06,7.01]
[1757626846773,3.62791537,226.14,226.06,7.01]
[1757626847073,7.08,226.22,226.06,7.01]
[1757626847379,7.08,226.2,226.06,7.01]
[1757626847581,7.08,226.18,226.06,7.01]
[1757626847776,7.08,226.16,226.06,7.01]
[1757626848081,7.08,226.14,226.06,7.01]
[1757626848269,3.63038885,226.13,226.06,7.01]
[1757626848474,7.08,226.14,226.06,7.01]
[1757626848669,3.63038885,226.13,226.06,7.01]
[1757626848972,7.08,226.14,226.06,7.01]
[1757626849379,3.63180091,226.13,226.06,7.01]
[1757626849570,7.08,226.14,226.06,7.01]
[1757626849769,3.63180091,226.13,226.06,7.01]
[1757626849987,7.08,226.14,226.06,7.01]
[1757626850182,3.63180091,226.13,226.06,7.01]
[1757626850376,7.08,226.14,226.06,7.01]
[1757626850578,3.63340581,226.13,226.06,7.01]
[1757626850879,7.08,226.14,226.06,7.01]
[1757626851081,3.63340581,226.13,226.06,7.01]
[1757626851282,7.08,226.14,226.06,7.01]
[1757626851483,3.6351963,226.13,226.06,7.01]
[1757626851682,7.08,226.14,226.06,7.01]
[1757626851882,3.6351963,226.13,226.06,7.01]
[1757626852082,7.08,226.14,226.06,7.01]
[1757626852279,3.6351963,226.13,226.06,7.01]
[1757626852482,7.08,226.14,226.06,7.01]
[1757626852683,3.63560931,226.13,226.06,7.01]
[1757626852878,7.08,226.14,226.06,7.01]
[1757626853079,3.63560931,226.13,226.06,7.01]
[1757626853382,7.08,226.14,226.06,7.01]
[1757626855383,3.63660548,226.13,226.06,7.01]
[1757626855583,7.08,226.14,226.06,7.01]
[1757626855884,3.63660548,226.13,226.06,7.01]
[1757626856085,7.08,226.14,226.06,7.01]
[1757626856384,3.63660548,226.13,226.06,7.01]
[1757626856584,7.08,226.14,226.06,7.01]
[1757626856781,3.63701856,226.13,226.06,7.01]
[1757626856981,7.08,226.14,226.06,7.01]
[1757626857183,3.63701856,226.13,226.06,7.01]
[1757626857383,7.08,226.14,226.06,7.01]
[1757626857586,3.63745794,226.13,226.06,7.01]
[1757626857784,7.08,226.14,226.06,7.01]
[1757626857985,3.63745794,226.13,226.06,7.01]
[1757626858284,7.08,226.14,226.06,7.01]
[1757626858484,3.63792637,226.13,226.06,7.01]
[1757626858682,7.08,226.14,226.06,7.01]
[1757626858887,3.63792637,226.13,226.06,7.01]
[1757626859087,7.08,226.14,226.06,7.01]
[1757626859284,3.63792637,226.13,226.06,7.01]
[1757626859483,7.08,226.14,226.06,7.01]
[1757626859689,3.6384272,226.13,226.06,7.01]
[1757626859885,7.08,226.14,226.06,7.01]
[1757626860087,3.6384272,226.13,226.06,7.01]
[1757626860288,7.08,226.14,226.06,7.01]
[1757626860485,3.63882445,226.13,226.06,7.01]
[1757626860687,7.08,226.14,226.06,7.01]
[1757626860884,3.63882445,226.13,226.06,7.01]
[1757626861080,7.08,226.14,226.06,7.01]
[1757626861285,3.63892292,226.13,226.06,7.01]
[1757626861486,7.08,226.14,226.06,7.01]
[1757626861686,3.63913929,226.13,226.06,7.01]
[1757626861888,7.08,226.14,226.06,7.01]
[1757626862086,3.63913929,226.13,226.06,7.01]
[1757626862387,7.08,226.14,226.06,7.01]
[1757626862582,3.63934234,226.13,226.06,7.01]
[1757626862886,7.08,226.14,226.06,7.01]
[1757626863086,3.63934234,226.13,226.06,7.01]
[1757626863287,7.08,226.14,226.06,7.01]
[1757626863492,3.63955304,226.13,226.06,7.01]
[1757626863688,7.08,226.14,226.06,7.01]
[1757626863887,3.6395533,226.13,226.06,7.01]
[1757626864090,7.08,226.14,226.06,7.01]
[1757626864290,3.63963249,226.13,226.06,7.01]
[1757626864488,7.08,226.14,226.06,7.01]
[1757626864789,3.63977261,226.13,226.06,7.01]
[1757626864992,7.08,226.14,226.06,7.01]
[1757626865292,3.63977261,226.13,226.06,7.01]
[1757626865488,7.08,226.14,226.06,7.01]
[1757626865793,3.64000033,226.13,226.06,7.01]
[1757626865990,7.08,226.14,226.06,7.01]
[1757626866190,3.64000033,226.13,226.06,7.01]
[1757626866390,7.08,226.14,226.06,7.01]
[1757626866689,3.64008208,226.13,226.06,7.01]
[1757626866892,7.08,226.14,226.06,7.01]
[1757626867090,3.64008208,226.13,226.06,7.01]
[1757626867296,7.08,226.14,226.06,7.01]
[1757626867496,3.64008202,226.13,226.06,7.01]
[1757626867697,7.08,226.14,226.06,7.01]
[1757626867996,3.64008202,226.13,226.06,7.01]
[1757626868297,7.08,226.14,226.06,7.01]
[1757626868498,3.6401169,226.13,226.06,7.01]
[1757626868699,7.08,226.14,226.06,7.01]
[1757626868898,3.6401169,226.13,226.06,7.01]
[1757626869098,7.08,226.14,226.06,7.01]
[1757626869301,3.64013153,226.13,226.06,7.01]
[1757626869493,7.08,226.14,226.06,7.01]
[1757626869689,3.64015202,226.13,226.06,7.01]
[1757626869897,7.08,226.14,226.06,7.01]
[1757626870098,3.64015202,226.13,226.06,7.01]
[1757626870299,7.08,226.14,226.06,7.01]
[1757626870497,3.64006025,226.13,226.06,7.01]
[1757626870699,7.08,226.14,226.06,7.01]
[1757626870896,3.64006025,226.13,226.06,7.01]
[1757626871096,7.08,226.14,226.06,7.01]
[1757626871299,3.64007824,226.13,226.06,7.01]
[1757626871500,7.08,226.14,226.06,7.01]
[1757626871697,3.63995789,226.13,226.06,7.01]
[1757626871897,7.08,226.14,226.06,7.01]
[1757626872202,3.63995789,226.13,226.06,7.01]
[1757626872401,7.08,226.14,226.06,7.01]
[1757626872602,3.64005848,226.13,226.06,7.01]
[1757626872802,7.08,226.14,226.06,7.01]
[1757626873007,3.64005848,226.13,226.06,7.01]
[1757626873203,7.08,226.14,226.06,7.01]
[1757626873401,3.6401887,226.13,226.06,7.01]
[1757626873703,7.08,226.14,226.06,7.01]
[1757626873904,3.6401887,226.13,226.06,7.01]
[1757626874204,7.08,226.14,226.06,7.01]
[1757626874406,3.64048737,226.13,226.06,7.01]
[1757626874705,7.23,226.12,226.06,7.01]
[1757626883416,3.64285472,226.11,226.06,7.53]
[1757626883621,7.23,226.12,226.06,7.53]
[1757626883817,3.64285472,226.11,226.05,107.16]
[1757626884017,7.23,226.12,226.06,7.53]
[1757626884217,3.64285472,226.11,226.06,7.53]
[1757626884423,7.23,226.12,226.06,7.53]
[1757626884424,7.23,226.19,226.06,7.53]
[1757626884620,7.23,226.17,226.06,7.53]
[1757626884820,7.23,226.15,226.06,7.53]
[1757626885019,7.23,226.13,226.06,7.53]
[1757626885222,6.68728023,226.12,226.06,7.53]
[1757626885416,3.64437307,226.11,226.06,7.53]
[1757626885621,7.23,226.12,226.06,7.53]
[1757626885920,3.64453206,226.11,226.06,7.53]
[1757626886225,7.23,226.19,226.06,7.53]
[1757626886418,7.23,226.17,226.06,7.53]
[1757626886617,7.23,226.15,226.06,7.53]
[1757626886824,7.23,226.13,226.06,7.53]
[1757626887017,6.68771739,226.12,226.06,7.53]
[1757626887219,3.64455833,226.11,226.05,107.16]
[1757626887419,7.23,226.19,226.06,7.53]
[1757626887621,7.07,226.17,226.06,7.53]
[1757626887822,7.07,226.15,226.06,7.53]
[1757626888024,7.07,226.13,226.06,7.53]
[1757626888221,6.68777082,226.12,226.06,7.53]
[1757626888426,3.64458866,226.11,226.06,7.6]
[1757626888626,7.07,226.13,226.06,7.6]
[1757626888827,6.68783313,226.12,226.06,7.6]
[1757626889028,3.64462407,226.11,226.06,7.6]
[1757626889234,7.07,226.18,226.06,7.6]
[1757626889527,7.07,226.16,226.06,7.6]
[1757626889732,7.07,226.14,226.06,7.6]
[1757626890028,6.68790475,226.13,226.06,7.6]
[1757626890229,6.68790475,226.12,226.06,7.6]
[1757626890428,3.64466483,226.11,226.06,7.6]
[1757626890629,7.07,226.18,226.06,7.6]
[1757626890830,7.07,226.16,226.06,7.6]
[1757626891028,7.07,226.14,226.06,7.6]
[1757626891329,6.67813042,226.13,226.06,7.6]
[1757626891522,6.67813042,226.12,226.06,7.6]
[1757626891727,3.63485548,226.11,226.06,7.6]
[1757626891928,7.07,226.14,226.06,7.6]
[1757626892130,6.67803664,226.13,226.06,7.6]
[1757626892329,6.67803664,226.12,226.06,7.6]
[1757626892524,3.63480987,226.11,226.06,7.6]
[1757626892721,7.07,226.14,226.06,7.6]
[1757626892923,6.67807019,226.13,226.06,7.6]
[1757626893126,6.67807019,226.12,226.06,7.6]
[1757626893327,3.63482904,226.11,226.06,7.6]
[1757626893523,7.07,226.13,226.06,7.6]
[1757626893725,6.67812194,226.12,226.06,7.6]
[1757626893933,3.63485865,226.11,226.05,109.36707612]
[1757626894238,7.07,226.13,226.06,7.6]
[1757626894442,6.67819279,226.12,226.06,7.6]
[1757626894631,3.6348993,226.11,226.06,7.6]
[1757626894827,7.07,226.13,226.06,7.6]
[1757626895126,6.67819279,226.12,226.06,7.6]
[1757626895436,3.6348993,226.11,226.06,7.6]
[1757626895637,7.07,226.13,226.06,7.6]
[1757626895838,6.67828389,226.12,226.06,7.6]
[1757626896042,3.63495174,226.11,226.06,7.6]
[1757626896337,7.07,226.13,226.06,7.6]
[1757626896540,6.67839684,226.12,226.06,7.6]
[1757626896733,3.63501691,226.11,226.06,7.6]
[1757626896933,7.07,226.13,226.06,7.6]
[1757626897237,6.67839684,226.12,226.06,7.6]
[1757626897436,3.63501691,226.11,226.06,7.6]
[1757626897637,7.07,226.13,226.06,7.6]
[1757626897832,6.67853408,226.12,226.06,7.6]
[1757626898037,3.63509642,226.11,226.06,7.6]
[1757626898241,7.07,226.13,226.06,7.6]
[1757626898537,6.67858971,226.12,226.06,7.6]
[1757626898736,3.6350832,226.11,226.06,7.6]
[1757626898939,7.07,226.13,226.06,7.6]
[1757626899138,6.67858971,226.12,226.06,7.6]
[1757626899338,3.6350832,226.11,226.05,109.36707612]
[1757626899638,7.07,226.18,226.06,7.6]
[1757626899840,7.07,226.16,226.06,7.6]
[1757626900044,7.07,226.14,226.06,7.6]
[1757626900338,6.67857498,226.13,226.06,7.6]
[1757626900538,6.67857498,226.12,226.06,9.80707612]
[1757626900735,3.63507368,226.11,226.06,2.20707612]
[1757626900934,7.07,226.14,226.07,7.6]
[1757626901134,6.6785923,226.13,226.07,7.6]
[1757626901336,6.6785923,226.12,226.07,7.6]
[1757626901633,3.63509344,226.11,226.07,7.6]
[1757626901833,7.07,226.13,226.07,7.6]
[1757626902033,6.67863955,226.12,226.06,2.20707612]
[1757626902238,3.63511935,226.11,226.06,2.20707612]
[1757626902536,7.07,226.13,226.07,7.6]
[1757626902734,6.67869813,226.12,226.06,2.20707612]
[1757626902939,3.63515172,226.11,226.06,2.20707612]
[1757626903238,7.07,226.13,226.07,7.6]
[1757626903438,6.67876871,226.12,226.07,7.6]
[1757626903638,3.63519097,226.11,226.07,7.6]
[1757626903939,7.07,226.19,226.07,7.6]
[1757626904134,7.07,226.17,226.07,7.6]
[1757626904335,7.07,226.15,226.07,7.6]
[1757626904535,7.07,226.13,226.07,7.6]
[1757626904834,6.67876871,226.12,226.06,2.20707612]
[1757626905035,3.63519097,226.11,226.07,7.6]
[1757626905235,7.07,226.13,226.07,7.6]
[1757626905533,6.68029251,226.12,226.06,2.20707612]
[1757626905733,3.63524045,226.11,226.06,2.20707612]
[1757626906039,7.07,226.13,226.07,7.6]
[1757626906240,6.69478335,226.12,226.06,2.20707612]
[1757626906436,3.64973129,226.11,226.06,2.20707612]
[1757626906637,7.07,226.13,226.07,7.6]
[1757626906837,6.69482676,226.12,226.07,7.6]
[1757626907037,3.6497313,226.11,226.06,2.20707612]
[1757626907238,7.07,226.13,226.07,7.6]
[1757626907537,6.69494141,226.12,226.07,7.6]
[1757626907840,3.64979618,226.11,226.06,2.20707612]
[1757626908041,7.07,226.13,226.07,7.6]
[1757626908242,6.69501669,226.12,226.07,7.6]
[1757626908442,10.71987146,226.11,226.06,2.20707612]
[1757626908636,7.07,226.11,226.07,7.6]
[1757626909541,7.07,226.11,226.06,2.20707612]
[1757626909741,7.07,226.11,226.07,7.6]
[1757626910043,7.07,226.11,226.06,2.20707612]
[1757626910239,7.07,226.11,226.07,7.6]
[1757626910435,7.07,226.19,226.06,9.80707612]
[1757626912136,7.07,226.12,226.06,106.84]
[1757626912443,7.07,226.1,226.03,116.68707612]
[1757626912642,7.07,226.16,226.03,116.68707612]
[1757626912942,12.21022244,226.15,226.03,116.68707612]
[1757626913136,10.00314632,226.14,226.03,116.68707612]
[1757626913442,7.07,226.12,226.03,116.68707612]
[1757626913638,7.07,226.1,226.03,116.68707612]
[1757626922349,7.07,226.1,226.03,109.08707612]
[1757626922549,7.07,226.1,226.04,6.91]
[1757626931756,2.20707612,226.15,226.03,109.08707612]
[1757626931958,9.99103844,226.14,226.03,109.08707612]
[1757626932157,6.57954874,226.13,226.03,109.08707612]
[1757626932350,6.57954874,226.12,226.03,109.08707612]
[1757626932555,6.57954874,226.11,226.03,109.08707612]
[1757626932756,2.20707612,226.15,226.03,109.08707612]
[1757626932957,9.99087573,226.14,226.03,109.08707612]
[1757626933257,6.57944186,226.13,226.03,109.08707612]
[1757626933460,6.57944186,226.12,226.03,109.08707612]
[1757626933654,6.57944186,226.11,226.03,109.08707612]
[1757626933851,2.20707612,226.15,226.03,109.08707612]
[1757626934054,9.99074265,226.14,226.03,109.08707612]
[1757626934256,6.57935451,226.13,226.03,2.20707612]
[1757626934456,6.57935451,226.12,226.04,106.86]
[1757626934657,6.57935451,226.11,226.04,106.86]
[1757626934856,2.20707612,226.15,226.04,106.86]
[1757626935056,9.99175072,226.14,226.04,106.86]
[1757626935252,6.58039844,226.13,226.04,106.86]
[1757626935552,6.58039844,226.12,226.04,106.86]
[1757626935756,6.58039844,226.11,226.04,106.86]
[1757626935959,2.20707612,226.15,226.04,106.86]
[1757626936162,9.98949784,226.14,226.04,106.86]
[1757626936361,6.57817173,226.13,226.04,106.86]
[1757626936659,6.57817173,226.12,226.04,106.86]
[1757626936860,6.57817173,226.11,226.04,106.86]
[1757626937058,2.20707612,226.15,226.04,106.86]
[1757626937260,9.98947961,226.14,226.04,106.86]
[1757626937460,6.57815569,226.13,226.04,106.86]
[1757626937654,6.57815569,226.12,226.04,106.86]
[1757626937849,6.57815569,226.11,226.04,106.86]
[1757626938052,2.20707612,226.15,226.04,106.86]
[1757626938262,9.9896045,226.14,226.04,106.86]
[1757626938463,3.04258334,226.13,226.04,106.86]
[1757626938666,6.57826341,226.12,226.04,106.86]
[1757626938864,2.20707612,226.15,226.04,106.86]
[1757626938865,6.57826341,226.11,226.04,106.86]
[1757626939158,2.20707612,226.15,226.04,106.86]
[1757626939364,9.98980907,226.14,226.04,106.86]
[1757626939558,6.57836749,226.13,226.04,106.86]
[1757626939759,6.57836749,226.12,226.04,106.86]
[1757626939955,6.57836749,226.11,226.04,106.86]
[1757626940162,2.20707612,226.15,226.04,106.86]
[1757626940362,9.99000973,226.14,226.04,106.86]
[1757626940562,6.57849737,226.13,226.04,106.86]
[1757626940761,6.57849737,226.12,226.04,106.86]
[1757626940963,6.57849737,226.11,226.04,106.86]
[1757626941265,2.20707612,226.15,226.04,106.86]
[1757626941559,9.99039789,226.14,226.04,106.86]
[1757626941763,9.99039789,226.13,226.04,106.86]
[1757626941957,6.57877008,226.12,226.04,106.86]
[1757626942153,6.57877008,226.11,226.04,106.86]
[1757626942362,3.04283593,226.1,226.04,106.86]
[1757626942563,2.20707612,226.15,226.04,106.86]
[1757626942762,9.98438554,226.14,226.04,106.86]
[1757626942961,9.98438554,226.13,226.04,106.86]
[1757626943163,6.57899895,226.12,226.04,106.86]
[1757626943362,6.57899895,226.11,226.04,106.86]
[1757626943562,6.57899895,226.1,226.04,106.86]
[1757626943865,3.04294404,226.09,226.04,106.86]
[1757626944065,2.20707612,226.15,226.04,106.86]
[1757626944266,9.98496188,226.14,226.04,106.86]
[1757626944466,9.98496188,226.13,226.04,106.86]
[1757626944666,9.98496188,226.12,226.04,106.86]
[1757626944866,6.57931472,226.11,226.04,106.86]
[1757626945062,6.57931472,226.1,226.04,106.86]
[1757626945262,3.04298657,226.09,226.04,106.86]
[1757626945467,2.20707612,226.15,226.04,106.86]
[1757626945663,9.98478947,226.14,226.04,106.86]
[1757626945866,2.20707612,226.15,226.04,106.86]
[1757626945867,9.98478947,226.13,226.04,106.86]
[1757626946066,9.98478947,226.12,226.04,106.86]
[1757626946262,6.57927002,226.11,226.04,106.86]
[1757626946467,6.57927002,226.1,226.04,106.86]
[1757626946667,3.04307447,226.09,226.04,106.86]
[1757626946864,7.1359305,226.17,226.04,106.86]
[1757626947065,9.98487958,226.16,226.04,106.86]
[1757626947370,9.98487958,226.15,226.04,106.86]
[1757626947565,9.98487958,226.14,226.04,106.86]
[1757626947765,9.98487958,226.13,226.04,106.86]
[1757626947966,9.98487958,226.12,226.04,106.86]
[1757626948168,6.5793302,226.11,226.04,106.86]
[1757626948362,7.1359305,226.17,226.04,106.86]
[1757626948363,6.5793302,226.1,226.04,106.86]
[1757626948562,3.04310358,226.09,226.04,106.86]
[1757626948762,7.1359305,226.17,226.04,106.86]
[1757626948962,9.98534837,226.16,226.04,106.86]
[1757626949163,9.98534837,226.15,226.04,106.86]
[1757626949363,9.98534837,226.14,226.04,106.86]